Cogmind - Beta 10.2 @@@ ROGUE MODE // 2020.12.02 @ 20:17:32 // Halloween2020/ForbiddenLore Player: Daddy5 Result: Destroyed by D-53 Grenadier with Mini Grenade Launcher Performance ------------- Evolutions (0) 0 Regions Visited (4) 800 Robots Destroyed (3) 15 Value Destroyed (97) 97 Prototype IDs (0) 0 Alien Tech Used (0) 0 Bonus (0) 0 TOTAL SCORE: 912 Bonus ------- None Cogmind --------- Core Integrity 0/250 Matter 299/300 Energy 100/100 System Corruption 0% Temperature Cool (0) Movement Core (100) Ox1 Location -9/Mines Parts ------- > --- POWER (1) -------- (None) > --- PROPULSION (2) --- (None) > --- UTILITY (2) ------ Small Storage Unit Improved Signal Interpreter > --- WEAPON (2) ------- Light Assault Rifle > --- INVENTORY (6) ---- Improved Ion Engine Improved Ion Engine Reinforced Deuterium Engine Large Matter Pod (37) Peak State ------------ > --- POWER ------------ Improved Ion Engine > --- PROPULSION ------- Aluminum Leg Aluminum Leg > --- UTILITY ---------- Small Storage Unit Improved Signal Interpreter > --- WEAPON ----------- Assault Rifle Light Assault Rifle > --- INVENTORY -------- Improved Ion Engine Improved Ion Engine Reinforced Deuterium Engine Large Matter Pod Light Assault Rifle [Rating: 10] Favorites ----------- Power Improved Ion Engine Engine Improved Ion Engine Propulsion Aluminum Leg Leg Aluminum Leg Utility Small Storage Unit Storage Small Storage Unit Processor Improved Signal Interpreter Weapon Light Assault Rifle Ballistic Gun Light Assault Rifle Build | -11 -10 -10 -10 -9 ------- Run | Scr Mat Min Exi Min Slots Evolved . | . . . . . Power . | . . . . . Propulsion . | . . . . . Utility . | . . . . . Weapon . | . . . . . Parts Attached 10 | 6 2 . 1 1 Power 3 | 1 1 . 1 . Engine 3 | 1 1 . 1 . Core . | . . . . . Reactor . | . . . . . Propulsion 2 | 2 . . . . Treads . | . . . . . Leg 2 | 2 . . . . Wheel . | . . . . . Hover . | . . . . . Flight . | . . . . . Utility 2 | 1 1 . . . Device . | . . . . . Storage 1 | 1 . . . . Processor 1 | . 1 . . . Hackware . | . . . . . Protection . | . . . . . Artifact . | . . . . . Weapon 3 | 2 . . . 1 Energy Gun . | . . . . . Energy Cannon . | . . . . . Ballistic Gun 3 | 2 . . . 1 Ballistic Cannon . | . . . . . Launcher . | . . . . . Special Weapon . | . . . . . Impact Weapon . | . . . . . Slashing Weapon . | . . . . . Piercing Weapon . | . . . . . Special Melee Weapon . | . . . . . Unidentified Prototypes . | . . . . . Parts Lost 5 | . . . . 5 Power 1 | . . . . 1 Propulsion 2 | . . . . 2 Utility . | . . . . . Weapon 2 | . . . . 2 Highest Loss Streak 5 | . . . . 5 Average Slot Usage (%) 99 | . 97 100 99 98 Engine 13 | . 14 14 13 14 Leg 28 | . 28 28 28 28 Storage 14 | . 14 14 14 14 Processor 13 | . 11 14 14 14 Ballistic Gun 27 | . 28 28 28 26 Naked Turns . | . . . . . Heaviest Build 14 | 10 14 14 14 14 Greatest Support 20 | 20 20 20 20 20 Greatest Overweight (x) 3 | 3 . . . 1 Average Overweight (x) . | . . . . . Largest Inventory Capacity 6 | 6 6 6 6 6 Average Capacity 5 | 5 6 6 6 6 Most Carried 6 | 2 5 5 6 5 Average Carried 4 | 1 3 5 5 4 Final Capacity 6 | 6 6 6 6 6 Final Carried 5 | 2 5 5 5 4 Class Distribution -------------------- 100% | Mutant Dominant Class ---------------- Mutant | -10/Materials Mutant | -10/Mines Mutant | -10/Exiles Mutant | -9/Mines Resources | -11 -10 -10 -10 -9 ----------- Run | Scr Mat Min Exi Min Matter Collected 349 | 199 28 104 . 18 Remotely . | . . . . . Salvage Created 114 | . 28 86 . . Parts 8 | . 4 4 . . Haulers Intercepted . | . . . . . Recyclers Shooed . | . . . . . Parts Field Recycled . | . . . . . Retrieved Matter . | . . . . . Parts Self-Destructed . | . . . . . Prevented . | . . . . . Kills | -11 -10 -10 -10 -9 ------- Run | Scr Mat Min Exi Min Combat Hostiles Destroyed 2 | . . 2 . . Guns 2 | . . 2 . . Classes Destroyed 2 | . 1 1 . . Watcher 1 | . 1 . . . Grunt 2 | . . 2 . . Best Kill Streak 2 | . 1 2 . . Combat Bots Only 2 | . . 2 . . Max Kills in Single Turn 1 | . 1 1 . . Gunslinging . | . . . . . Exploded . | . . . . . Melee . | . . . . . Uniques/NPCs Destroyed . | . . . . . Combat | -11 -10 -10 -10 -9 -------- Run | Scr Mat Min Exi Min Damage Taken 800 | . . 61 . 739 Core 261 | . . 14 . 247 Absorbed by Shields . | . . . . . Core Remaining (%) 100 | 100 . . . . Volleys Fired 11 | . 1 5 . 5 Largest 2 | . 2 2 . 2 Hottest 40 | . 40 40 . 40 Shots Fired 20 | . 2 10 . 8 Gun 20 | . 2 10 . 8 Cannon . | . . . . . Launcher . | . . . . . Special . | . . . . . Kinetic 20 | . 2 10 . 8 Thermal . | . . . . . Explosive . | . . . . . Electromagnetic . | . . . . . Robot Hit Streak 4 | . 1 3 . 4 Robot Miss Streak 2 | . . 2 . 1 Penetration Max . | . . . . . Secondary Targets 1 | . . 1 . . Max Gunslinging Chain 1 | . . 1 . . Shots Hit Robots 12 | . 1 5 . 6 Core Hits 7 | . 1 4 . 2 Critical Hits . | . . . . . Critical Kills . | . . . . . Critical Parts Destroyed . | . . . . . Melee Attacks . | . . . . . Impact . | . . . . . Slashing . | . . . . . Piercing . | . . . . . Sneak Attacks . | . . . . . Combat Hostiles . | . . . . . Follow-up Attacks . | . . . . . Damage Inflicted 140 | . 15 61 . 64 Guns 140 | . 15 61 . 64 Cannons . | . . . . . Explosions . | . . . . . Melee . | . . . . . Ramming . | . . . . . Kinetic 140 | . 15 61 . 64 Thermal . | . . . . . Explosive . | . . . . . Electromagnetic . | . . . . . Impact . | . . . . . Slashing . | . . . . . Piercing . | . . . . . Highest Corruption . | . . . . . Average Corruption . | . . . . . Corruption Purged . | . . . . . Overload Shots . | . . . . . Overflow Damage . | . . . . . Projectiles . | . . . . . Explosions . | . . . . . Melee . | . . . . . Knockbacks . | . . . . . Impact . | . . . . . Kinetic . | . . . . . Secondary . | . . . . . Self-Inflicted Damage . | . . . . . Shots . | . . . . . Rammed . | . . . . . Targets Rammed . | . . . . . Kicked . | . . . . . Crushed . | . . . . . Highest Temperature 11 | . 2 11 . 3 Average Temperature 3 | . 1 5 . 1 Received Heat Transfer 36 | . . 36 . . Siege Activations . | . . . . . Robots Corrupted . | . . . . . Combat Hostiles . | . . . . . Parts Fried . | . . . . . Impact Corruptions . | . . . . . Robots Melted . | . . . . . Combat Hostiles . | . . . . . Parts Melted . | . . . . . Heat Transferred . | . . . . . Parts Sabotaged . | . . . . . Parts Stolen . | . . . . . Parts Stripped . | . . . . . Power Chain Reactions . | . . . . . Missiles Intercepted . | . . . . . Alert | -11 -10 -10 -10 -9 ------- Run | Scr Mat Min Exi Min Peak Influence 52 | . 7 52 . . Initial 2 | . . 2 . . Average 13 | . 4 46 . . Maximum Alert Level . | . . . . . Low Security (%) 100 | 100 100 100 . 100 Level 1 . | . . . . . Level 2 . | . . . . . Level 3 . | . . . . . Level 4 . | . . . . . Level 5 . | . . . . . High Security . | . . . . . Max Security . | . . . . . Squads Dispatched . | . . . . . Investigation . | . . . . . Extermination . | . . . . . Reinforcement . | . . . . . Assault . | . . . . . Garrison . | . . . . . Intercept . | . . . . . Construction Impeded . | . . . . . Haulers Reinforced . | . . . . . Stealth | -11 -10 -10 -10 -9 --------- Run | Scr Mat Min Exi Min Distress Signals . | . . . . . Communications Jammed . | . . . . . Distress Signals . | . . . . . Times Spotted 12 | . 1 2 . 9 Peak Tracking Total 7 | . 1 2 . 7 Tactical Retreats . | . . . . . Traps | -11 -10 -10 -10 -9 ------- Run | Scr Mat Min Exi Min Traps Triggered . | . . . . . Indirectly . | . . . . . Trap Hack Attempts . | . . . . . Triggered . | . . . . . Disarmed . | . . . . . Reprogrammed . | . . . . . Reused . | . . . . . Traps Extracted . | . . . . . Installed . | . . . . . Triggered . | . . . . . Machines | -11 -10 -10 -10 -9 ---------- Run | Scr Mat Min Exi Min Machines Disabled . | . . . . . Max in Single Turn . | . . . . . Machines Sabotaged . | . . . . . Garrisons Compromised . | . . . . . Overloaded Fab Kills . | . . . . . Fab Network Shutdowns . | . . . . . Hacking | -11 -10 -10 -10 -9 --------- Run | Scr Mat Min Exi Min Machines Accessed 5 | . 1 . 4 . Terminals 1 | . 1 . . . Fabricators . | . . . . . Repair Stations . | . . . . . Recycling Units . | . . . . . Scanalyzers . | . . . . . Garrison Access . | . . . . . Total Hacks 51 | . 2 . 49 . Successful 50 | . 1 . 49 . Failed 1 | . 1 . . . Catastrophic 1 | . 1 . . . Database Lockouts . | . . . . . Manual 6 | . . . 6 . Terminals 2 | . 2 . . . Fabricators . | . . . . . Repair Stations . | . . . . . Recycling Units . | . . . . . Scanalyzers . | . . . . . Garrison Access . | . . . . . Terminal Hacks 50 | . 1 . 49 . Record 49 | . . . 49 . Branch Access Points 1 | . 1 . . . Fabricator Hacks . | . . . . . Repair Station Hacks . | . . . . . Recycling Unit Hacks . | . . . . . Scanalyzer . | . . . . . Garrison Access Hacks . | . . . . . Unauthorized Hacks . | . . . . . Terminals . | . . . . . Fabricators . | . . . . . Repair Stations . | . . . . . Recycling Units . | . . . . . Scanalyzers . | . . . . . Garrison Access . | . . . . . Data Cores Recovered . | . . . . . Used . | . . . . . Hacking Detections 1 | . 1 . . . Full Trace Events 1 | . 1 . . . Feedback Events . | . . . . . Feedback Blocked . | . . . . . Robot Schematics Acquired . | . . . . . Robots Built . | . . . . . Matter . | . . . . . Time . | . . . . . Total Robot Build Rating . | . . . . . Part Schematics Acquired . | . . . . . Parts Built . | . . . . . Matter . | . . . . . Time . | . . . . . Total Part Build Rating . | . . . . . Parts Repaired . | . . . . . Time . | . . . . . Parts Recycled . | . . . . . Recycled Matter . | . . . . . Retrieved Matter . | . . . . . Retrieved Components . | . . . . . Parts Scanalyzed . | . . . . . Part Schematics Acquired . | . . . . . Parts Damaged . | . . . . . Bothacking | -11 -10 -10 -10 -9 ------------ Run | Scr Mat Min Exi Min Used RIF Installer . | . . . . . Robots Hacked . | . . . . . Non-combat . | . . . . . Combat . | . . . . . Robot Hacks Applied . | . . . . . Relay Couplers Released . | . . . . . Robots Rewired . | . . . . . Allies Hacked . | . . . . . Hacks Repelled . | . . . . . Allies | -11 -10 -10 -10 -9 -------- Run | Scr Mat Min Exi Min Total Allies . | . . . . . Largest Group . | . . . . . Highest-Rated Group . | . . . . . Highest-Rated Ally . | . . . . . Total Orders . | . . . . . Ally Attacks . | . . . . . Total Damage . | . . . . . Kills . | . . . . . Allies Corrupted . | . . . . . Allies Melted . | . . . . . Intel | -11 -10 -10 -10 -9 ------- Run | Scr Mat Min Exi Min Robot Analysis Total . | . . . . . Derelict Logs Recovered 1 | . . . . 1 Drone Launches . | . . . . . Drone Recoveries . | . . . . . Exploration | -11 -10 -10 -10 -9 ------------- Run | Scr Mat Min Exi Min Turns Passed 1448 | 57 126 116 1014 135 Spaces Moved 1171 | 45 97 85 843 101 Core 24 | 22 . . . 2 Treads . | . . . . . Legs 1147 | 23 97 85 843 99 Wheels . | . . . . . Hover . | . . . . . Flight . | . . . . . Fastest Speed 50 | 50 120 120 120 100 Average Speed 119 | 101 120 120 120 119 Slowest Speed 200 | 200 120 120 120 120 Overloaded Moves . | . . . . . Propulsion Burnouts . | . . . . . Robots Hopped . | . . . . . Cave-ins Triggered . | . . . . . Exploration Rate (%) 32 | 4 14 26 92 27 Regions Visited 4 Branch Regions 3 Pre-discovered Areas 2 | . . . 1 1 Known Exits Taken 3 | . 1 1 1 . Unknown Exits Taken 1 | 1 . . . . Scrap Searched 1 | . . . . 1 Spaces Dug . | . . . . . Terrain Destroyed . | . . . . . Melee . | . . . . . Projectile . | . . . . . AOE . | . . . . . Terrain Rammed . | . . . . . Walls Destroyed . | . . . . . Machines Disabled . | . . . . . Actions | -11 -10 -10 -10 -9 --------- Run | Scr Mat Min Exi Min Total 1203 | 53 105 90 847 108 Wait 4 | 1 . 1 1 1 Move 1167 | 44 96 84 842 101 Hop . | . . . . . Pick Up 7 | 2 4 . 1 . Fast Attach 7 | 6 1 . . . Attach 2 | . . . 1 1 Detach 1 | . . . 1 . Swap 1 | . 1 . . . Drop 3 | . 2 . 1 . Fire 11 | . 1 5 . 5 Melee . | . . . . . Ram . | . . . . . Kick . | . . . . . Crush . | . . . . . Escape Stasis . | . . . . . Rewire . | . . . . . Trap . | . . . . . Miscellaneous . | . . . . . Route ------- -11/Scrapyard -10/Materials -10/Mines (discovered 2 exits: *Mat / *Exi) -10/Exiles -9/Mines (discovered 1 exit: [*Mat]) History --------- Turn | Location | Event 29 | -11/Scrapyard | Discovered new exit (range 15) 58 | -11/Scrapyard | Entered Materials 100 | -10/Materials | Discovered new exit (range 16) 159 | -10/Materials | Identified exit to Mines 184 | -10/Materials | Entered Mines 184 | -10/Mines | Discovered new exit (range 5) 219 | -10/Mines | Identified exit to Materials 294 | -10/Mines | Deemed a non-threat by the Exiles lab entrance 295 | -10/Mines | Discovered new exit (range 5) 299 | -10/Mines | Identified exit to Exiles 300 | -10/Mines | Entered Exiles 304 | -10/Exiles | Build established: Mutant 343 | -10/Exiles | Met 8R-AWN 362 | -10/Exiles | Met EX-HEX 457 | -10/Exiles | Met EX-DEC 485 | -10/Exiles | Visited The Gauntlet 678 | -10/Exiles | Learned location of Zion (-7) 767 | -10/Exiles | Discovered new exit (range 10) 780 | -10/Exiles | Identified exit to Mines 911 | -10/Exiles | Met EX-BIN 1314 | -10/Exiles | Entered Mines 1427 | -9/Mines | Assembled infested the area 1433 | -9/Mines | Discovered new exit (range 13) 1442 | -9/Mines | Core integrity fell below 50% 1444 | -9/Mines | Core integrity fell below 20% 1449 | -9/Mines | Destroyed by D-53 Grenadier with Mini Grenade Launcher Last Messages --------------- 01386_ Acquired derelict log, extracted data. World map updated: -9/Materials. 01401_ Searching scrap... 01401_ Found Heat Shielding. 01401_ Found 18 Matter. 01402_ Acquired 18 matter. 01427_ ALERT: Infestation in the mines, dispatching Demolisher response squad. 01433_ C-30 ARC bursts open, deploying its payload. 01433_ D-53 Grenadier unfolds itself. 01433_ EXIT=FOUND 01434_ The unstable cave ceiling collapses. 01439_ Assault Rifle destroyed. 01440_ The unstable cave ceiling collapses. 01443_ Imp. Ion Engine destroyed. 01443_ Lgt. Assault Rifle destroyed. 01443_ T-07 Excavator destroyed. 01444_ The unstable cave ceiling collapses. 01447_ Aluminum Leg destroyed. 01448_ The unstable cave ceiling collapses. Map ----- +----------------------------------------------------+ | | | | | | | | | | | ?????????????????????????????????????????????????? | | ?????????????????????????????????????????????????? | | ????????????????????????#????????????????????????? | | ??????????????????????## ???????????????????????? | | ????????????????????# ???????????????????????? | | ????????????????????? ??????????????????###### | | ?????????????????????< ??????????????????# | | ?????????????????????? ??????????????????# | | ?????????????????????? ??????????????????# ### | | ??????????????????????# ??????????????????# #?? | | ??????????????????????? #?????????????????# #?? | | ??????????????????????? ##????????????????# #?? | | ???????????????????????# d ###??????????????# #?? | | ??????????????????????## %d ##?????######### #?? | | ?????????????????????## ##????# ! #?? | | ?????????????????????# #????# #?? | | ????????????????????## #????# ##########?? | | ????????????????????# #????# #??????????? | | ????????????????????# #????# #??????????? | | ????????????????????# # ##???# #??????????? | | ????????????????????# @ ##### #??????????? | | ????????????????????## a #??????????? | | ?????????????????????## #??????????? | | ??????????????????????##a #######??????????? | | ??????????????????????#a #????????????????? | | ????????????????????# = #????????????????? | | ???????????????????# !%|## #????????????????? | | ?????????????????? *### #????????????????? | | ???????????????? a ##?# #????????????????? | | ????????????????######a #???# #???????????????? | | ?????????????????????#a a????# #????????????????? | | ????????????????????? ???? ????????????????? | | ????????????????????## #???? ????????????????? | | ?????????????????????###????? ???????????????? | | ????????????????????????????? ???????????????? | | ????????????????????????????## ##???????????????? | | ??????????????????????????????##?????????????????? | | ?????????????????????????????????????????????????? | | ?????????????????????????????????????????????????? | | ?????????????????????????????????????????????????? | | ?????????????????????????????????????????????????? | | ?????????????????????????????????????????????????? | | ?????????????????????????????????????????????????? | | ?????????????????????????????????????????????????? | | ?????????????????????????????????????????????????? | +----------------------------------------------------+ Best States ------------- Heat Dissipation 25 Energy Generation 12 Energy Capacity 265 Matter Stores 300 Matter Capacity 300 Sight Range 16 Terrain Scan Density 10 Evasion (%) 50 Item Schematics ----------------- None Robot Schematics ------------------ None Fabricated ------------ Nothing Alien Tech Used ----------------- None Achievements -------------- None Challenges ------------ None Game ------ Seed SeismicBombardmentMembrane Manual? 0 Play Time 00:26:06 Cumulative 9.0 hours Start 2020.11.30 @ 21:14:21 End 2020.12.02 @ 20:17:32 Sessions 3 Manual Loads 0 Difficulty Rogue Special Mode Halloween2020/ForbiddenLore Game No. 12 Rogue 12 Adventurer 0 Explorer 0 Win Type - Total 0 Types 0/0/0/0/0/0/0/0/0 Lore% 18 Gallery% 15 Achievement% 13 Wizard Run 0 Options --------- ASCII 0 Keyboard 1 Movement Numpad Keybinds 0 Fullscreen 1 Font 24/Crisp Map View 76x50 Tactical HUD 1 Map Filters NONE Filters NONE Steam 1 RUN: 21bd073e-d7d1-47f1-ace7-3bc88ffd97f7